bitfinex-derivatives/quotes_BTCF0:USTF0_20240830
["timestamp","ask_amount","ask_price","bid_price","bid_amount"]
[1725050005225,0.16951,58996.0,58995.0,0.00025439]
[1725050005429,0.76318563,58996.0,58995.0,0.00025439]
[1725050005618,0.83318563,58996.0,58995.0,0.00025439]
[1725050005921,1.20727775,58996.0,58995.0,0.00025439]
[1725050006224,1.22000463,58996.0,58995.0,0.00025439]
[1725050006432,1.22000463,58996.0,58995.0,0.00125439]
[1725050006627,1.28959019,58996.0,58995.0,0.00225439]
[1725050006928,1.37434519,58996.0,58995.0,0.00225439]
[1725050007119,0.94395963,58996.0,58995.0,0.00225439]
[1725050007321,1.37434519,58996.0,58995.0,0.00225439]
[1725050009327,1.30475963,58996.0,58995.0,0.00225439]
[1725050009920,0.80475963,58996.0,58995.0,0.00225439]
[1725050010120,0.7439268,58996.0,58995.0,0.00225439]
[1725050010327,1.2439268,58996.0,58995.0,0.00225439]
[1725050010528,1.30475963,58996.0,58995.0,0.00225439]
[1725050012534,1.32410778,58996.0,58995.0,0.00225439]
[1725050013237,1.29526344,58996.0,58995.0,0.00225439]
[1725050015635,1.29526445,58996.0,58995.0,0.00225439]
[1725050016337,1.36485001,58996.0,58995.0,0.00225439]
[1725050016731,1.31280342,58996.0,58995.0,0.00225439]
[1725050017122,1.36484999,58996.0,58995.0,0.00225439]
[1725050018627,1.36484984,58996.0,58995.0,0.00225439]
[1725050023126,1.00404984,58996.0,58995.0,0.00225439]
[1725050023434,1.36484984,58996.0,58995.0,0.00225439]
[1725050023634,1.43484988,58996.0,58995.0,0.00225439]
[1725050024327,1.36526432,58996.0,58995.0,0.00225439]
[1725050024729,0.86526432,58996.0,58995.0,0.00225439]
[1725050026034,1.08579453,58996.0,58995.0,0.00225439]
[1725050026230,1.0249617,58996.0,58995.0,0.00225439]
[1725050026427,0.3746517,58996.0,58995.0,0.08701139]
[1725050026633,0.3746517,58996.0,58995.0,0.20701139]
[1725050026843,0.15412149,58996.0,58995.0,0.20701139]
[1725050027141,0.15412149,58996.0,58995.0,1.84584539]
[1725050027142,0.05204646,58996.0,58995.0,1.84584539]
[1725050027530,0.05204646,59004.0,58999.0,0.084751]
[1725050027841,0.20671547,59006.0,59003.0,0.4808]
[1725050028032,0.05203633,59005.0,59004.0,0.134944]
[1725050028334,0.20671547,59006.0,59005.0,0.084742]
[1725050028542,0.27810125,59006.0,59005.0,0.134442]
[1725050029037,0.2695298,59006.0,59005.0,0.134442]
[1725050029439,0.07138578,59006.0,59005.0,1.242882]
[1725050029637,0.01935006,59006.0,59005.0,1.242882]
[1725050029935,0.05203572,59009.0,59008.0,0.084738]
[1725050030238,0.12,59014.0,59013.0,0.08473]
[1725050030433,0.18040523,59014.0,59013.0,0.08473]
[1725050030633,0.05203572,59014.0,59013.0,0.08473]
[1725050030934,0.12,59018.0,59013.0,0.08473]
[1725050030935,0.05203572,59017.0,59016.0,0.084727]
[1725050031247,0.00842721,59032.0,59016.0,0.12]
[1725050031447,0.00842721,59032.0,59013.0,1.0073]
[1725050031448,0.06078424,59026.0,59025.0,0.084714]
[1725050031632,0.18078424,59026.0,59018.0,0.36105417]
[1725050031833,0.18078424,59026.0,59020.0,0.084721]
[1725050031834,0.12,59021.0,59020.0,0.084721]
[1725050032027,0.1859371,59022.0,59021.0,0.084719]
[1725050032234,0.1859371,59022.0,59018.0,0.36105417]
[1725050032235,0.06078424,59026.0,59022.0,0.084718]
[1725050032550,0.06078424,59026.0,59018.0,0.36105417]
[1725050032551,0.06078424,59026.0,59023.0,0.084716]
[1725050033034,0.12,59024.0,59023.0,0.084716]
[1725050033635,0.12,59024.0,59018.0,0.36105417]
[1725050033940,0.12,59020.0,59019.0,0.084722]
[1725050034936,0.3056349,59023.0,59020.0,0.084721]
[1725050035246,0.3056349,59023.0,59022.0,0.001]
[1725050035446,0.12,59023.0,59022.0,0.085718]
[1725050035636,0.12,59023.0,59022.0,0.084718]
[1725050036031,0.17201957,59023.0,59022.0,0.084718]
[1725050036842,0.05301957,59023.0,59022.0,0.084718]
[1725050037043,0.001,59023.0,59022.0,0.084718]
[1725050037236,0.01860339,59023.0,59022.0,0.084718]
[1725050037437,0.001,59023.0,59022.0,0.084718]
[1725050037737,0.05201957,59024.0,59022.0,0.084718]
[1725050037738,0.05201957,59024.0,59023.0,0.084716]
[1725050038242,0.42257447,59025.0,59024.0,0.084715]
[1725050038634,0.4406541,59025.0,59024.0,0.084715]
[1725050039043,0.3047341,59025.0,59024.0,0.084715]
[1725050039435,0.1190992,59025.0,59024.0,0.084715]
[1725050039745,0.1190992,59025.0,59024.0,0.085715]
[1725050041134,0.11909847,59025.0,59024.0,0.085715]
[1725050041440,0.12009847,59025.0,59024.0,0.086715]
[1725050043146,0.07109847,59025.0,59024.0,0.086715]
[1725050043649,0.07109847,59025.0,59024.0,0.567515]
[1725050043836,0.07109847,59025.0,59024.0,0.65223]
[1725050044651,0.28988794,59025.0,59024.0,0.65223]
[1725050044941,0.07109847,59025.0,59024.0,0.65223]
[1725050046444,0.20420145,59025.0,59024.0,0.65223]
[1725050047648,0.07109847,59025.0,59024.0,0.65223]
[1725050047843,0.01907963,59025.0,59024.0,0.65223]
[1725050048438,0.07109847,59025.0,59024.0,0.65223]
[1725050048640,0.01907963,59025.0,59024.0,0.447515]
[1725050048850,0.27052647,59025.0,59024.0,0.002]
[1725050049045,0.084719,59022.0,59018.0,0.36105417]
[1725050049337,0.204722,59019.0,59018.0,0.36105417]
[1725050049543,0.44189527,59019.0,59018.0,0.36105417]
[1725050049744,0.25674084,59019.0,59018.0,0.36105417]
[1725050049949,0.33674084,59019.0,59018.0,0.36105417]
[1725050050155,0.52189527,59019.0,59018.0,0.36205417]
[1725050050447,0.33674084,59019.0,59018.0,0.00125417]
[1725050050652,0.08473,59014.0,59006.0,0.084741]
[1725050050838,0.2,59008.0,59005.0,0.3608]
[1725050051042,0.10241884,59007.0,59005.0,0.3608]
[1725050052446,0.10241884,59007.0,59005.0,0.3618]
[1725050053048,0.10241884,59007.0,59005.0,0.3628]
[1725050053449,0.084741,59006.0,59005.0,0.3628]
[1725050053754,0.27845066,59006.0,59005.0,0.3628]
[1725050053956,0.3304695,59006.0,59005.0,0.3628]
[1725050054146,0.14519137,59006.0,59005.0,0.3628]
[1725050054348,0.084742,59005.0,59000.0,0.00025417]
[1725050054655,0.645548,59001.0,59000.0,0.00025417]
[1725050054843,0.69756684,59001.0,59000.0,0.00025417]
[1725050055047,0.78231484,59001.0,59000.0,0.00025417]
[1725050055257,0.84312482,59001.0,59000.0,0.00025417]
[1725050055549,0.84312482,59001.0,59000.0,0.00125417]
[1725050055757,0.75837682,59001.0,59000.0,0.00125417]
[1725050056053,1.81532483,59001.0,58993.0,0.3608]
[1725050056247,0.284758,58994.0,58993.0,0.3608]
[1725050056447,0.33680283,58994.0,58993.0,0.3608]
[1725050056948,0.39758682,58994.0,58993.0,0.3608]
[1725050057158,0.33680283,58994.0,58993.0,0.3608]
[1725050057446,0.39758682,58994.0,58993.0,0.3608]
[1725050057652,0.05204483,58994.0,58993.0,1.06932]
[1725050057844,0.05204483,58994.0,58993.0,1.75408]
[1725050058050,0.05204483,58997.0,58996.0,0.084755]
[1725050058354,0.06986012,58998.0,58997.0,0.084754]
[1725050058660,0.05203622,58998.0,58997.0,0.084754]
[1725050058955,0.05203622,58998.0,58997.0,0.593234]
[1725050059644,0.06603622,58998.0,58997.0,0.594234]
[1725050059846,0.08003617,58998.0,58997.0,0.595234]
[1725050060244,0.08003617,58998.0,58997.0,1.195234]
[1725050060445,0.08003617,58998.0,58997.0,1.279988]
[1725050061447,0.028,58998.0,58997.0,1.364742]
[1725050063648,0.028,58998.0,58997.0,2.086342]
[1725050064054,0.028,58998.0,58997.0,2.10410013]
[1725050065156,0.05203617,59011.0,58997.0,2.10410013]
[1725050065157,0.05203617,59011.0,59002.0,0.084746]
[1725050065355,0.0487,59012.0,59010.0,0.3608]
[1725050065657,0.05710719,59012.0,59010.0,0.3608]
[1725050066353,0.05710719,59012.0,59011.0,0.084734]
[1725050066754,0.0889452,59012.0,59011.0,0.084734]
[1725050067758,0.0969452,59012.0,59011.0,0.445534]
[1725050068362,0.0969452,59012.0,59011.0,0.446534]
[1725050068662,0.0849452,59012.0,59011.0,0.447534]
[1725050069057,0.0849452,59012.0,59011.0,0.086734]
[1725050069252,0.0849452,59012.0,59011.0,0.447534]
[1725050073868,0.0849452,59012.0,59011.0,0.532268]
[1725050074856,0.13697378,59012.0,59011.0,0.532268]
[1725050075059,0.0849452,59012.0,59011.0,0.532268]
[1725050076051,0.13697378,59012.0,59011.0,0.532268]
[1725050076460,0.19776886,59012.0,59011.0,0.532268]
[1725050077067,0.19776886,59012.0,59011.0,0.3628]
[1725050077256,0.31250086,59012.0,59011.0,0.3628]
[1725050078162,1.33612886,59012.0,59005.0,0.00025417]
[1725050078371,0.084741,59006.0,59005.0,0.00025417]
[1725050078564,0.19756466,59006.0,59005.0,0.00025417]
[1725050079069,0.19756878,59006.0,59005.0,0.00025417]
[1725050079567,0.20456878,59006.0,59005.0,0.00225417]
[1725050080371,0.20756878,59006.0,59005.0,0.00225417]
[1725050081762,0.28756878,59006.0,59005.0,0.00225417]
[1725050082668,0.57230978,59006.0,59005.0,0.00225417]
[1725050082976,1.69879407,59006.0,59005.0,0.00202876]
[1725050083171,0.084755,58997.0,58992.0,0.3608]
[1725050083362,0.40612778,58996.0,58994.0,0.084757]
[1725050083560,0.0520327,58995.0,58994.0,0.084757]
[1725050083759,0.10014233,58995.0,58994.0,0.084757]
[1725050084268,0.15244674,58996.0,58994.0,0.084757]
[1725050084566,0.008,58996.0,58995.0,0.084757]
[1725050085166,0.084755,58997.0,58995.0,0.084757]
[1725050085672,0.089755,58997.0,58995.0,0.084757]
[1725050085861,0.009,58996.0,58995.0,0.085757]
[1725050086270,0.084755,58997.0,58995.0,0.085757]
[1725050086469,0.098755,58997.0,58995.0,0.086757]
[1725050086968,0.084755,58996.0,58995.0,0.086757]
[1725050087175,0.090755,58996.0,58995.0,0.086757]
[1725050087379,0.187255,58996.0,58995.0,0.086757]
[1725050087873,0.187255,58996.0,58995.0,0.002]
[1725050088574,0.196255,58996.0,58995.0,0.002]
[1725050089265,0.24229742,58996.0,58995.0,0.002]
[1725050089968,0.24729742,58996.0,58995.0,0.002]
[1725050092069,0.23829742,58996.0,58995.0,0.001]
[1725050092275,0.24729742,58996.0,58995.0,0.002]
[1725050093376,0.24729839,58996.0,58995.0,0.002]
[1725050093883,0.2600242,58996.0,58995.0,0.002]
[1725050094178,0.3956642,58996.0,58995.0,0.002]
[1725050094766,0.38293839,58996.0,58995.0,0.002]
[1725050099383,0.24729839,58996.0,58995.0,0.002]
[1725050099683,0.169528,58990.0,58980.0,0.3286]
[1725050099873,0.2,58981.0,58978.0,0.4078]
[1725050100071,0.12,58979.0,58978.0,0.4078]
[1725050100378,0.20478,58979.0,58978.0,0.4078]
[1725050100675,0.20478,58979.0,58978.0,0.3608]
[1725050100866,0.20478,58979.0,58978.0,0.3556661]
[1725050100867,0.25683484,58979.0,58978.0,0.3556661]
[1725050101967,0.13683484,58979.0,58978.0,0.3556661]
[1725050102174,0.22046,58979.0,58978.0,0.3556661]
[1725050102377,0.48151484,58979.0,58978.0,0.3556661]
[1725050102780,0.009,58979.0,58978.0,0.6404471]
[1725050102978,0.018,58979.0,58978.0,1.8348681]
[1725050103887,0.018,58979.0,58978.0,1.9196491]
[1725050106084,0.00025417,58984.0,58983.0,0.169548]
[1725050106288,0.00025417,58984.0,58983.0,1.123722]
[1725050106588,0.05204681,58999.0,58995.0,0.2]
[1725050106782,0.18605644,59003.0,58995.0,0.2]
[1725050106783,0.05204643,58998.0,58996.0,0.0483]
[1725050106983,0.05204643,58997.0,58996.0,0.133055]
[1725050107291,0.06074167,58997.0,58996.0,0.133055]
[1725050108580,0.07474167,58997.0,58996.0,0.134055]
[1725050108780,0.07474167,58997.0,58996.0,0.135055]
[1725050109085,0.08774167,58997.0,58996.0,0.135055]
[1725050112283,0.08774167,58997.0,58996.0,0.086755]
[1725050112985,0.30760223,58997.0,58996.0,0.086755]
[1725050113373,0.08774167,58997.0,58996.0,0.086755]
[1725050113688,0.28774167,58997.0,58996.0,0.086755]
[1725050114591,0.37249567,58997.0,58996.0,0.002]
[1725050116087,0.37249731,58997.0,58996.0,0.002]
[1725050117082,0.08774331,58997.0,58996.0,0.086755]
[1725050120890,0.08773924,58997.0,58996.0,0.086755]
[1725050121884,0.28773924,58997.0,58996.0,0.086755]
[1725050122388,0.73329324,58997.0,58996.0,0.002]
[1725050122590,0.37249324,58997.0,58996.0,0.002]
[1725050122793,0.45724724,58997.0,58996.0,0.002]
[1725050122992,0.57724724,58997.0,58996.0,0.002]
[1725050124286,0.58997253,58997.0,58996.0,0.002]
[1725050124994,0.72549253,58997.0,58996.0,0.002]
[1725050125499,0.46869453,58997.0,58996.0,0.002]
[1725050125689,0.52073996,58997.0,58996.0,0.002]
[1725050125889,0.56073996,58997.0,58996.0,0.002]
[1725050126793,0.92153996,58997.0,58996.0,0.002]
[1725050127989,1.00629396,58997.0,58996.0,0.002]
[1725050128693,0.93159362,58997.0,58996.0,0.00177459]
[1725050128890,1.06711362,58997.0,58996.0,0.00177459]
[1725050130501,1.06711403,58997.0,58996.0,0.00177459]
[1725050131796,1.13670036,58997.0,58996.0,0.00177459]
[1725050133399,1.13670036,58997.0,58996.0,0.00159714]
[1725050134797,0.96719236,58997.0,58988.0,0.084766]
[1725050135001,0.084765,58990.0,58988.0,0.084766]
[1725050135299,0.084767,58988.0,58986.0,0.31354675]
[1725050135594,0.18245203,58987.0,58986.0,0.31354675]
[1725050135993,0.18245203,58987.0,58981.0,0.00025417]
[1725050136188,0.18245203,58986.0,58985.0,0.3608]
[1725050136591,0.05204604,58986.0,58985.0,0.3608]
[1725050137497,0.084767,58988.0,58987.0,0.084768]
[1725050139103,0.098767,58988.0,58987.0,0.085768]
[1725050139895,0.112767,58988.0,58987.0,0.086768]
[1725050140511,0.13084923,58988.0,58987.0,0.086768]
[1725050145503,0.04608223,58988.0,58987.0,0.086768]
[1725050146810,0.13084923,58988.0,58987.0,0.086768]
[1725050148018,0.25084923,58988.0,58987.0,0.086768]
[1725050148709,0.0766218,58988.0,58987.0,0.086768]
[1725050148913,0.1613888,58988.0,58987.0,0.086768]
[1725050149505,0.27425589,58988.0,58987.0,0.086768]
[1725050150210,0.18948889,58988.0,58987.0,0.086768]
[1725050150524,0.9253451,58988.0,58987.0,0.002]
[1725050150702,0.93807039,58988.0,58987.0,0.002]
[1725050151005,0.084775,58982.0,58981.0,0.00025417]
[1725050151205,0.31764209,58982.0,58981.0,0.00025417]
[1725050151411,0.44995371,58982.0,58981.0,0.00025417]
[1725050152209,0.41036738,58982.0,58981.0,0.00225417]
[1725050152402,0.34954772,58982.0,58981.0,0.00225417]
[1725050154115,0.71570627,58982.0,58981.0,0.00225417]
[1725050154430,0.72843156,58982.0,58981.0,0.00225417]
[1725050154913,0.36763156,58982.0,58981.0,0.00225417]
[1725050155115,0.71570627,58982.0,58981.0,0.00225417]
[1725050155311,0.72843156,58982.0,58981.0,0.00225417]
[1725050155909,0.50239426,58982.0,58981.0,0.00225417]
[1725050156110,0.58716926,58982.0,58981.0,0.00225417]
[1725050159115,0.50239426,58982.0,58981.0,0.08703117]
[1725050159429,0.56321392,58982.0,58981.0,0.08703117]
[1725050160819,0.45242879,58982.0,58981.0,0.08703117]
[1725050161017,0.65242879,58982.0,58981.0,0.08703117]
[1725050162016,0.07354495,58982.0,58981.0,1.72602517]
[1725050162223,9.5e-07,58982.0,58981.0,1.55647117]
[1725050162411,0.12689578,58985.0,58984.0,0.169544]
[1725050162616,0.17894062,58985.0,58984.0,0.530344]
[1725050162815,0.00922504,58985.0,58984.0,1.638944]
[1725050163314,0.00922504,58985.0,58984.0,1.723716]
[1725050163529,0.00025417,58990.0,58989.0,0.16953]
[1725050163820,0.00025417,58990.0,58989.0,0.73033]
[1725050164017,0.00025417,58990.0,58989.0,1.83889]
[1725050165212,0.00225417,58990.0,58989.0,1.83989]
[1725050165412,0.06306753,58990.0,58989.0,1.83989]
[1725050166508,0.06306753,58990.0,58989.0,1.83978307]
[1725050166711,0.07106753,58990.0,58989.0,1.84078307]
[1725050166921,0.07106753,58990.0,58989.0,1.88988307]
[1725050167620,0.01025417,58990.0,58989.0,1.88988307]
[1725050169318,0.01025417,58990.0,58989.0,1.52908307]
[1725050169620,0.01025417,58990.0,58989.0,1.88988307]
[1725050172928,0.01025417,58990.0,58989.0,0.78132307]
[1725050173125,0.01025417,58990.0,58989.0,0.73222307]
[1725050174025,0.01025417,58990.0,58989.0,0.65222307]
[1725050174524,0.01025417,58990.0,58989.0,0.29142307]
[1725050174729,0.01025417,58990.0,58989.0,0.65222307]
[1725050178532,0.01025417,58990.0,58989.0,0.29142307]
[1725050179031,0.01025417,58990.0,58989.0,0.65222307]
[1725050180635,0.01025417,58990.0,58989.0,0.29142307]
[1725050180933,0.01025417,58990.0,58989.0,0.65222307]
[1725050182522,0.34308095,58990.0,58989.0,0.65222307]
[1725050183731,0.12310976,58990.0,58989.0,0.65222307]
[1725050186833,0.1231098,58990.0,58989.0,0.65222307]
[1725050187725,0.1231098,58990.0,58989.0,0.29142307]
[1725050188134,0.1231098,58990.0,58989.0,0.65222307]
[1725050189526,0.01025417,58990.0,58989.0,0.65222307]
[1725050195343,0.01025417,58990.0,58989.0,0.29142307]
[1725050195546,0.01025417,58990.0,58989.0,0.65222307]
[1725050197047,0.01025417,58990.0,58989.0,0.53222307]
[1725050197547,0.06229644,58990.0,58989.0,0.65222307]
[1725050199241,0.14706044,58990.0,58989.0,0.56745807]
[1725050199451,0.14706044,58990.0,58989.0,0.44745807]
[1725050200164,0.14706044,58990.0,58989.0,0.56745807]
[1725050201660,0.06229813,58990.0,58989.0,0.56745807]
[1725050202057,0.06081098,58993.0,58991.0,0.084762]
[1725050202260,0.084741,59006.0,58993.0,0.12]
[1725050202463,0.00840463,59008.0,59007.0,0.084739]
[1725050202773,0.15394558,59008.0,59007.0,0.084739]
[1725050204065,0.15594558,59008.0,59007.0,0.085739]
[1725050204669,0.09514263,59008.0,59007.0,0.085739]
[1725050204861,0.09514263,59008.0,59007.0,0.086739]
[1725050206276,0.01040463,59008.0,59007.0,0.086739]
[1725050207675,0.01040463,59008.0,59007.0,0.447539]
[1725050209368,0.00840463,59008.0,59007.0,0.447539]
[1725050212669,0.12840463,59008.0,59007.0,0.447539]
[1725050212868,0.12840463,59008.0,59007.0,0.086739]
[1725050216275,0.08143394,59009.0,59008.0,0.084738]
[1725050216482,0.08978202,59009.0,59008.0,0.084738]
[1725050216686,0.45058202,59009.0,59008.0,0.084738]
[1725050217381,0.48914808,59009.0,59008.0,0.084738]
[1725050217576,0.50187184,59009.0,59008.0,0.085738]
[1725050218579,0.52420536,59009.0,59008.0,0.085738]
[1725050218791,0.04340536,59009.0,59008.0,0.085738]
[1725050218981,0.16340536,59009.0,59008.0,0.086738]
[1725050219381,0.1506816,59009.0,59008.0,0.086738]
[1725050219681,0.21148455,59009.0,59008.0,0.086738]
[1725050219877,0.02233352,59009.0,59008.0,0.086738]
[1725050220085,0.02233352,59009.0,59008.0,0.256214]
[1725050220086,0.06080295,59009.0,59008.0,0.256214]
[1725050220273,0.06080295,59009.0,59008.0,0.397914]
[1725050220987,0.12,59015.0,59012.0,0.169464]
[1725050221974,0.02223103,59014.0,59012.0,0.169464]
[1725050222372,0.12025417,59013.0,59012.0,0.169464]
[1725050222873,0.12025417,59013.0,59012.0,0.170464]
[1725050223273,0.12025417,59013.0,59012.0,0.085732]
[1725050223679,0.12025417,59013.0,59012.0,0.086732]
[1725050224291,0.20498517,59013.0,59012.0,0.002]
[1725050224481,0.31418812,59013.0,59012.0,0.002]
[1725050224680,0.31418812,59013.0,59012.0,0.001]
[1725050224876,0.31418812,59013.0,59012.0,0.002]
[1725050225080,0.25338517,59013.0,59012.0,0.002]
[1725050229489,0.13338517,59013.0,59012.0,0.002]
[1725050229683,0.25338517,59013.0,59012.0,0.002]
[1725050231985,0.33811617,59013.0,59012.0,0.002]
[1725050232184,0.35083939,59013.0,59012.0,0.002]
[1725050234584,0.41164234,59013.0,59012.0,0.002]
[1725050235998,0.084745,59003.0,58998.0,0.0495]
[1725050236193,0.204745,59003.0,59002.0,0.08500117]
[1725050237399,0.204745,59003.0,59002.0,0.08600117]
[1725050238197,0.205745,59003.0,59002.0,0.08700117]
[1725050240090,0.26654795,59003.0,59002.0,0.00225417]
[1725050241198,0.29468157,59003.0,59002.0,0.00225417]
[1725050242795,0.23387862,59003.0,59002.0,0.00225417]
[1725050245399,0.31862362,59003.0,59002.0,0.00225417]
[1725050245604,0.38862362,59003.0,59002.0,0.00225417]
[1725050246698,0.084748,59002.0,58981.0,0.3286]
[1725050246900,0.204771,58985.0,58984.0,0.445572]
[1725050247798,0.25681957,58985.0,58984.0,0.445572]
[1725050247994,0.2568198,58985.0,58984.0,0.094772]
[1725050248904,0.2578198,58985.0,58984.0,0.090772]
[1725050249413,0.2578198,58985.0,58984.0,0.085772]
[1725050249596,0.2688198,58985.0,58984.0,0.086772]
[1725050249998,0.2578198,58985.0,58984.0,0.085772]
[1725050250208,0.2698198,58985.0,58984.0,0.085772]
[1725050251006,0.29720198,58985.0,58984.0,0.085772]
[1725050252517,0.38197298,58985.0,58984.0,0.001]
[1725050252820,0.89057822,58985.0,58984.0,0.001]
[1725050253814,0.90330706,58985.0,58984.0,0.001]
[1725050254703,0.98807806,58985.0,58984.0,0.001]
[1725050254902,1.57534922,58985.0,58984.0,0.001]
[1725050255101,1.63615217,58985.0,58984.0,0.001]
[1725050256301,1.77111217,58985.0,58984.0,0.001]
[1725050256698,1.88111217,58985.0,58984.0,0.001]
[1725050257810,1.76825518,58985.0,58984.0,0.001]
[1725050259705,2.12905518,58985.0,58984.0,0.001]
[1725050259904,1.76825518,58985.0,58984.0,0.001]
[1725050260414,1.52905518,58985.0,58984.0,0.001]
[1725050262718,1.40905518,58985.0,58984.0,0.001]
[1725050262915,1.52905518,58985.0,58984.0,0.001]
[1725050264408,1.40905518,58985.0,58984.0,0.001]
[1725050264610,1.52905518,58985.0,58984.0,0.001]
[1725050264912,1.64194527,58985.0,58984.0,0.001]
[1725050265908,1.42221427,58985.0,58984.0,0.001]
[1725050266115,1.55717427,58985.0,58984.0,0.001]
[1725050267204,1.04857427,58985.0,58984.0,0.001]
[1725050268017,1.04861427,58985.0,58984.0,0.001]
[1725050271716,1.04861427,58985.0,58979.0,0.00025417]
[1725050271717,0.084778,58980.0,58979.0,0.00025417]
[1725050272020,0.650356,58980.0,58979.0,0.00025417]
[1725050272222,0.70241526,58980.0,58979.0,0.00025417]
[1725050272718,0.650356,58980.0,58979.0,0.00025417]
[1725050273019,0.70941611,58980.0,58979.0,0.00125417]
[1725050273223,0.71641611,58980.0,58979.0,0.00225417]
[1725050274320,0.85125611,58980.0,58979.0,0.00225417]
[1725050277028,0.85125632,58980.0,58979.0,0.00225417]
[1725050277326,0.76647832,58980.0,58979.0,0.00225417]
[1725050282320,0.87647832,58980.0,58979.0,0.00225417]
[1725050282532,1.30034032,58980.0,58970.0,0.084792]
[1725050282730,0.12,58971.0,58970.0,0.084792]
[1725050283030,0.25685132,58971.0,58970.0,0.084792]
[1725050283234,0.084793,58970.0,58966.0,0.0983]
[1725050283430,0.17206032,58970.0,58966.0,0.0983]
[1725050284528,0.17806032,58970.0,58969.0,0.0501]
[1725050284930,0.26285332,58970.0,58969.0,0.0501]
[1725050285133,0.38285332,58970.0,58969.0,0.0501]
[1725050285532,0.38285332,58970.0,58969.0,0.0511]
[1725050285533,0.38885332,58970.0,58969.0,0.0511]
[1725050285744,0.26885332,58970.0,58969.0,0.0511]
[1725050287637,0.26885332,58970.0,58969.0,0.002]
[1725050287848,0.39885332,58970.0,58969.0,0.002]
[1725050288039,0.26885332,58970.0,58969.0,0.002]
[1725050290242,0.26886101,58970.0,58969.0,0.002]
[1725050291131,0.39886101,58970.0,58969.0,0.002]
[1725050293531,0.48365401,58970.0,58969.0,0.002]
[1725050293735,0.49638594,58970.0,58969.0,0.002]
[1725050294341,0.99638594,58970.0,58969.0,0.002]
[1725050295141,0.99638664,58970.0,58969.0,0.002]
[1725050296144,0.94431793,58970.0,58969.0,0.002]
[1725050296441,1.11853508,58970.0,58969.0,0.002]
[1725050296643,1.13126763,58970.0,58969.0,0.002]
[1725050297141,1.07919855,58970.0,58969.0,0.002]
[1725050299238,1.13126784,58970.0,58969.0,0.002]
[1725050299743,1.49206784,58970.0,58969.0,0.002]
[1725050299946,1.49206788,58970.0,58969.0,0.002]
[1725050305546,1.40711488,58970.0,58969.0,0.002]
[1725050307847,1.49190788,58970.0,58969.0,0.002]
[1725050308047,1.40711488,58970.0,58969.0,0.002]
[1725050308359,0.084798,58967.0,58951.0,0.3608]
[1725050308654,0.44561,58958.0,58955.0,0.084814]
[1725050308955,0.084813,58956.0,58951.0,0.445619]
[1725050309143,0.09345857,58956.0,58952.0,0.186018]
[1725050309339,0.00864557,58956.0,58953.0,0.084817]
[1725050309538,0.13688358,58957.0,58953.0,0.084817]
[1725050309744,0.12,58954.0,58953.0,0.084817]
[1725050309944,0.18058828,58954.0,58953.0,0.084817]
[1725050311049,0.18258828,58954.0,58953.0,0.084817]
[1725050311647,0.08102748,58955.0,58953.0,0.084817]
[1725050311844,0.12,58954.0,58953.0,0.084817]
[1725050312046,0.18272385,58954.0,58953.0,0.084817]
[1725050312448,0.26753985,58954.0,58953.0,0.084817]
[1725050312751,0.26553985,58954.0,58953.0,0.084817]
[1725050313753,0.26553985,58954.0,58949.0,0.4141]
[1725050313754,0.084819,58952.0,58949.0,0.4141]
[1725050313947,0.12,58950.0,58949.0,0.498923]
[1725050314148,0.17207258,58950.0,58949.0,0.498923]
[1725050314355,0.17207589,58950.0,58949.0,0.138123]
[1725050314556,0.17207589,58950.0,58948.0,0.00025439]
[1725050314557,0.084823,58949.0,58948.0,0.00025439]
[1725050314860,0.13689889,58949.0,58948.0,0.00025439]
[1725050315049,0.13389889,58949.0,58948.0,0.00025439]
[1725050315848,0.13689889,58949.0,58948.0,0.00025439]
[1725050317353,0.14389889,58949.0,58948.0,0.00025439]
[1725050317862,0.094823,58949.0,58948.0,0.00025439]
[1725050321655,0.179646,58949.0,58948.0,0.00025439]
[1725050322857,0.679646,58949.0,58948.0,0.00025439]
[1725050323059,0.69238226,58949.0,58948.0,0.00025439]
[1725050323466,0.81238226,58949.0,58948.0,0.00025439]
[1725050323971,0.799646,58949.0,58948.0,0.00025439]
[1725050324368,0.81238336,58949.0,58948.0,0.00025439]
[1725050324775,0.799646,58949.0,58948.0,0.00025439]
[1725050324972,0.85173505,58949.0,58948.0,0.00025439]
[1725050325372,0.799646,58949.0,58948.0,0.00025439]
[1725050325576,1.160446,58949.0,58948.0,0.00025439]
[1725050325778,1.17318339,58949.0,58948.0,0.00025439]
[1725050325974,1.160446,58949.0,58948.0,0.00025439]
[1725050326370,0.799646,58949.0,58948.0,0.00025439]
[1725050326676,1.160446,58949.0,58948.0,0.00025439]
[1725050326873,1.27340111,58949.0,58948.0,0.00025439]
[1725050328680,1.22131165,58949.0,58948.0,0.00025439]
[1725050333882,0.91260136,58949.0,58948.0,0.00025439]
[1725050334182,1.27340136,58949.0,58948.0,0.00025439]
[1725050337679,1.37340136,58949.0,58948.0,0.00025439]
[1725050337883,2.25480971,58949.0,58937.0,0.084839]
[1725050338083,0.12,58938.0,58937.0,0.084839]
[1725050338474,0.12,58938.0,58936.0,0.0508]
[1725050338676,0.204839,58938.0,58936.0,0.0508]
[1725050338877,0.05208971,58937.0,58936.0,0.0508]
[1725050339584,0.06087186,58937.0,58936.0,0.0508]
[1725050340485,0.14571186,58937.0,58936.0,0.0508]
[1725050340981,0.14871186,58937.0,58936.0,0.0508]
[1725050341181,0.14871186,58937.0,58931.0,0.00017146]
[1725050341182,0.084845,58934.0,58931.0,0.08502046]
[1725050341391,0.12,58932.0,58931.0,0.08502046]
[1725050341584,0.18087186,58932.0,58931.0,0.00017146]
[1725050341884,0.26571886,58932.0,58931.0,0.00017146]
[1725050343274,0.40035886,58932.0,58931.0,0.00017146]
[1725050343477,0.42728934,58932.0,58931.0,0.00017146]
[1725050343680,0.36641748,58932.0,58931.0,0.00017146]
[1725050343880,0.72721748,58932.0,58931.0,0.00017146]
[1725050344187,0.78808934,58932.0,58931.0,0.00017146]
[1725050344488,0.79408934,58932.0,58931.0,0.00017146]
[1725050345286,0.74021748,58932.0,58931.0,0.00017146]
[1725050345477,0.60557748,58932.0,58931.0,0.00017146]
[1725050345673,0.73321748,58932.0,58931.0,0.00017146]
[1725050345982,0.74121748,58932.0,58931.0,0.00017146]